bitfinex-derivatives/quotes_SOLF0:USTF0_20250623
["timestamp","ask_amount","ask_price","bid_price","bid_amount"]
[1750691108825,7.3948,135.18,135.15,15.41437979]
[1750691109026,39.66,135.2,135.15,8.01857979]
[1750691109726,7.3951,135.17,135.15,8.01857979]
[1750691110227,7.3951,135.17,135.14,15.41487979]
[1750691111316,7.3951,135.17,135.14,8.01857979]
[1750691111826,7.3951,135.17,135.14,15.41477979]
[1750691112526,39.66,135.2,135.14,15.41477979]
[1750691112527,7.3955,135.16,135.14,15.41477979]
[1750691112728,8.01857979,135.18,135.12,7.2772]
[1750691112930,8.01857979,135.16,135.09,8.01857979]
[1750691113228,7.3978,135.12,135.09,15.41757979]
[1750691113927,7.3978,135.12,135.09,8.01857979]
[1750691114317,7.3974,135.13,135.1,7.3985]
[1750691114729,47.67857979,135.16,135.11,8.01857979]
[1750691114929,39.66,135.16,135.11,8.01857979]
[1750691115132,8.01857979,135.18,135.11,8.01857979]
[1750691115327,7.3963,135.15,135.12,7.3974]
[1750691115627,7.3963,135.15,135.11,8.01857979]
[1750691115829,39.66,135.19,135.13,8.01857979]
[1750691116029,47.67857979,135.19,135.13,8.01857979]
[1750691116526,7.3963,135.15,135.13,8.01857979]
[1750691116731,47.67857979,135.19,135.11,8.01857979]
[1750691117130,7.3971,135.14,135.11,15.41657979]
[1750691117532,7.3971,135.14,135.11,8.01857979]
[1750691117732,7.3971,135.14,135.11,15.41657979]
[1750691119035,7.3971,135.14,135.12,7.3977]
[1750691119230,7.3971,135.14,135.11,8.01857979]
[1750691120031,7.3974,135.14,135.11,8.01857979]
[1750691120337,7.3974,135.14,135.11,15.41687979]
[1750691120539,7.3974,135.14,135.11,8.01857979]
[1750691120929,8.01857979,135.17,135.09,8.01857979]
[1750691121135,786.76,135.22,135.09,8.01857979]
[1750691121136,47.61857979,135.15,135.09,8.01857979]
[1750691121527,7.3994,135.1,135.09,8.01857979]
[1750691121736,8.01857979,135.13,135.07,39.6]
[1750691122236,7.4002,135.09,135.07,39.6]
[1750691123536,7.4005,135.08,135.07,39.6]
[1750691123940,7.4005,135.08,135.06,22.63577979]
[1750691124241,47.61857979,135.11,135.05,8.01857979]
[1750691124727,7.4008,135.08,135.05,15.42047979]
[1750691124931,39.6,135.11,135.07,8.01857979]
[1750691125137,4.1862,135.17,135.07,8.01857979]
[1750691125138,8.01857979,135.15,135.07,8.01857979]
[1750691125437,39.6,135.14,135.1,7.3991]
[1750691125636,39.6,135.14,135.09,8.01857979]
[1750691125839,7.398,135.13,135.1,7.3991]
[1750691126739,7.3984,135.12,135.09,15.41827979]
[1750691126939,39.6,135.14,135.09,15.41827979]
[1750691128342,7.3989,135.11,135.09,8.01857979]
[1750691128546,47.61857979,135.14,135.08,39.6]
[1750691128735,39.6,135.14,135.07,8.01857979]
[1750691128939,47.61857979,135.14,135.07,8.01857979]
[1750691129143,7.3994,135.11,135.08,7.4002]
[1750691129543,47.61857979,135.14,135.08,7.4002]
[1750691129746,7.3993,135.11,135.08,7.4002]
[1750691129942,7.3993,135.11,135.09,7.3999]
[1750691131546,7.3993,135.11,135.08,7.4002]
[1750691132443,7.3981,135.13,135.1,7.399]
[1750691132748,47.61857979,135.16,135.1,7.399]
[1750691133147,39.6,135.16,135.09,8.01857979]
[1750691133340,39.6,135.16,135.13,8.01857979]
[1750691133544,39.6,135.19,135.13,8.01857979]
[1750691134143,7.3942,135.2,135.17,7.3953]
[1750691134347,39.6,135.22,135.17,8.01857979]
[1750691135144,8.36952163,135.24,135.17,8.01857979]
[1750691135346,55.98810142,135.25,135.19,8.01857979]
[1750691135549,47.61857979,135.25,135.19,8.01857979]
[1750691135754,8.01857979,135.21,135.15,4.816]
[1750691136057,8.37836501,135.24,135.11,11.42253335]
[1750691136058,8.01857979,135.19,135.12,8.01857979]
[1750691136257,7.3961,135.17,135.13,7.3974]
[1750691136463,39.6,135.19,135.13,7.3974]
[1750691136863,7.3968,135.15,135.12,19.60891403]
[1750691137066,39.6,135.19,135.12,12.21081403]
[1750691137557,39.6,135.19,135.11,46.4757]
[1750691137558,12.21081403,135.18,135.11,46.4757]
[1750691137959,12.21081403,135.18,135.05,13.73345002]
[1750691137960,12.21081403,135.16,135.08,51.81081403]
[1750691138556,39.6,135.15,135.08,51.81081403]
[1750691139063,7.3986,135.12,135.09,7.3999]
[1750691139864,7.3986,135.12,135.08,51.81081403]
[1750691140364,7.399,135.11,135.08,51.81081403]
[1750691140767,12.21081403,135.14,135.06,7.1498]
[1750691142070,7.4,135.09,135.06,7.1498]
[1750691143667,7.4006,135.08,135.06,4.862]
[1750691143967,7.4006,135.08,135.05,51.81081403]
[1750691144467,39.6,135.11,135.03,12.21081403]
[1750691144661,12.21081403,135.1,135.03,12.21081403]
[1750691145069,7.4011,135.07,135.03,19.61371403]
[1750691146770,7.4016,135.06,135.03,19.61371403]
[1750691146970,12.21081403,135.1,135.02,47.0091]
[1750691147165,12.21081403,135.06,134.97,9.15563335]
[1750691147366,12.21081403,135.06,134.96,39.6]
[1750691147367,12.21081403,135.04,134.96,54.1164]
[1750691147567,39.6,135.03,134.96,54.1164]
[1750691147874,39.6,135.03,134.97,12.21081403]
[1750691148075,39.62,135.06,134.99,12.21081403]
[1750691148475,7.4035,135.03,134.99,19.61591403]
[1750691148675,39.62,135.06,134.99,12.21081403]
[1750691148885,7.4014,135.07,135.01,12.21081403]
[1750691149073,7.4014,135.07,135.03,19.61371403]
[1750691149467,7.4012,135.07,135.03,19.61371403]
[1750691150071,7.4017,135.06,135.03,12.21081403]
[1750691150372,7.4017,135.06,135.02,7.4035]
[1750691150875,7.4017,135.06,135.01,12.21081403]
[1750691150876,7.4014,135.07,135.03,7.4032]
[1750691151275,39.62,135.08,135.01,12.21081403]
[1750691151672,7.4023,135.05,135.02,7.4035]
[1750691151981,39.62,135.08,135.01,12.21081403]
[1750691152165,12.21081403,135.07,135.0,39.62]
[1750691152563,7.4041,135.02,135.0,39.62]
[1750691153375,7.4035,135.03,135.0,39.62]
[1750691153679,12.21081403,135.07,135.0,39.62]
[1750691153880,7.4022,135.05,135.01,12.21081403]
[1750691154571,7.4022,135.05,135.01,19.61481403]
[1750691154970,7.4017,135.06,135.03,12.21081403]
[1750691155166,7.4017,135.06,135.03,19.61401403]
[1750691155379,7.4017,135.06,135.03,12.21081403]
[1750691155776,7.4017,135.06,135.0,39.62]
[1750691155977,7.4017,135.06,135.03,12.21081403]
[1750691156178,7.4013,135.07,135.03,19.61361403]
[1750691156373,39.62,135.08,135.03,12.21081403]
[1750691156575,39.56,135.11,135.04,2.4509]
[1750691156770,39.56,135.11,135.04,9.8533]
[1750691156978,39.56,135.11,135.05,12.21081403]
[1750691157273,7.4013,135.07,135.05,12.21081403]
[1750691157480,39.56,135.11,135.05,12.21081403]
[1750691157879,39.56,135.11,135.05,19.61291403]
[1750691158082,39.56,135.11,135.05,12.21081403]
[1750691158579,7.4006,135.08,135.05,12.21081403]
[1750691159774,7.4012,135.07,135.05,12.21081403]
[1750691159980,39.56,135.11,135.05,12.21081403]
[1750691160380,39.56,135.11,135.04,2.4509]
[1750691160381,39.58,135.15,135.07,12.21081403]
[1750691160578,39.58,135.15,135.07,19.61181403]
[1750691160978,39.58,135.15,135.07,12.21081403]
[1750691161282,39.58,135.15,135.06,39.58]
[1750691161283,39.58,135.15,135.09,12.21081403]
[1750691161470,39.58,135.15,135.1,2.5032]
[1750691161673,39.58,135.15,135.1,14.71401403]
[1750691161977,7.3981,135.13,135.1,14.71401403]
[1750691162284,39.58,135.15,135.1,14.71401403]
[1750691162777,651.55081403,135.2,135.12,12.21081403]
[1750691163082,39.56,135.19,135.13,7.3973]
[1750691163281,39.56,135.19,135.14,12.21081403]
[1750691163587,39.56,135.19,135.12,12.21081403]
[1750691164174,7.3969,135.15,135.12,12.21081403]
[1750691164684,39.56,135.19,135.12,12.21081403]
[1750691165284,7.3969,135.15,135.12,12.21081403]
[1750691165783,7.3975,135.14,135.12,12.21081403]
[1750691166079,12.21081403,135.16,135.1,2.5032]
[1750691166278,7.3978,135.13,135.09,7.3996]
[1750691166479,39.56,135.15,135.09,7.3996]
[1750691166782,39.56,135.15,135.09,12.21081403]
[1750691166985,46.9569,135.15,135.11,19.60931403]
[1750691167281,7.3969,135.15,135.11,19.60931403]
[1750691167685,7.3969,135.15,135.12,7.3982]
[1750691167887,7.3973,135.14,135.11,12.21081403]
[1750691168581,7.3969,135.15,135.11,12.21081403]
[1750691168786,51.77081403,135.18,135.11,12.21081403]
[1750691170391,7.3981,135.13,135.11,12.21081403]
[1750691170688,51.77081403,135.18,135.11,12.21081403]
[1750691171082,7.398,135.13,135.11,12.21081403]
[1750691171282,51.77081403,135.18,135.11,12.21081403]
[1750691172085,7.3981,135.13,135.11,12.21081403]
[1750691172490,39.56,135.18,135.11,51.77081403]
[1750691172791,39.56,135.18,135.13,19.60821403]
[1750691173187,7.3958,135.17,135.13,12.21081403]
[1750691173887,39.56,135.18,135.13,12.21081403]
[1750691174495,7.3959,135.17,135.13,19.60841403]
[1750691174791,39.56,135.18,135.13,12.21081403]
[1750691175190,39.56,135.25,135.17,12.21081403]
[1750691175496,12.21081403,135.22,135.13,51.77081403]
[1750691175792,39.56,135.21,135.13,59.16811403]
[1750691176492,39.56,135.21,135.13,51.77081403]
[1750691177898,7.3958,135.17,135.13,51.77081403]
[1750691178197,7.3958,135.17,135.13,19.60811403]
[1750691178493,39.56,135.21,135.13,51.75081403]
[1750691178690,39.56,135.21,135.13,59.14831403]
[1750691178892,7.3971,135.15,135.12,6.9863]
[1750691179098,12.21081403,135.2,135.12,6.9863]
[1750691179398,12.21081403,135.2,135.12,14.3843]
[1750691179598,7.397,135.15,135.12,14.3843]
[1750691180095,7.3974,135.14,135.12,6.9863]
[1750691180294,12.21081403,135.2,135.12,2.3038]
[1750691180295,47.55690891,135.17,135.12,2.3038]
[1750691181595,39.54,135.17,135.12,2.3038]
[1750691182492,7.3969,135.15,135.12,2.3038]
[1750691182698,39.54,135.17,135.13,8.01690891]
[1750691182896,7.3967,135.15,135.13,8.01690891]
[1750691183993,7.3972,135.14,135.12,2.3038]
[1750691184497,7.3981,135.13,135.1,15.41600891]
[1750691184699,47.55690891,135.17,135.1,8.01690891]
[1750691184895,47.55690891,135.17,135.08,39.52]
[1750691184896,39.54,135.17,135.12,8.01690891]
[1750691185100,7.3971,135.15,135.12,15.41490891]
[1750691186801,39.54,135.17,135.12,15.41480891]
[1750691187098,39.54,135.17,135.12,8.01690891]
[1750691187298,39.54,135.17,135.12,47.53690891]
[1750691187498,47.55690891,135.17,135.1,8.01690891]
[1750691188098,7.398,135.13,135.1,15.41600891]
[1750691188301,47.55690891,135.17,135.1,15.41600891]
[1750691188502,7.3981,135.13,135.1,15.41600891]
[1750691188698,47.55690891,135.17,135.11,7.3988]
[1750691188902,47.55690891,135.17,135.1,8.01690891]
[1750691189201,47.55690891,135.17,135.11,8.01690891]
[1750691189903,47.55690891,135.17,135.1,7.3991]
[1750691190103,47.55690891,135.17,135.09,47.53690891]
[1750691190404,7.3976,135.13,135.09,47.53690891]
[1750691190804,7.3976,135.13,135.1,7.3987]
[1750691191499,8.01690891,135.15,135.09,47.53690891]
[1750691191805,8.01690891,135.15,135.08,8.01690891]
[1750691191999,8.01690891,135.13,135.07,2.3383]
[1750691192201,47.53690891,135.13,135.07,2.3383]
[1750691193607,47.53690891,135.13,135.06,47.53690891]
[1750691194808,7.3994,135.09,135.06,54.93740891]
[1750691195802,7.3994,135.09,135.06,47.53690891]
[1750691196002,7.3989,135.1,135.08,8.01690891]
[1750691196906,7.3989,135.1,135.07,15.41700891]
[1750691198102,8.01690891,135.17,135.07,15.41700891]
[1750691198103,8.00727957,135.21,135.07,8.01690891]
[1750691198306,47.53690891,135.18,135.11,8.01690891]
[1750691198711,8.01690891,135.14,135.08,8.01690891]
[1750691198902,47.53690891,135.14,135.07,47.53690891]
[1750691199103,8.01690891,135.12,135.07,47.53690891]
[1750691199302,7.3994,135.09,135.07,47.53690891]
[1750691199506,8.01690891,135.12,135.05,8.01690891]
[1750691199703,7.4005,135.07,135.05,8.01690891]
[1750691200511,8.01690891,135.08,135.02,8.01690891]
[1750691200899,7.4023,135.04,135.02,8.01690891]
[1750691202010,8.01690891,135.08,135.02,8.01690891]
[1750691202011,8.01690891,135.09,135.02,8.01690891]
[1750691202210,8.01690891,135.09,135.01,39.52]
[1750691202412,7.4017,135.05,135.02,19.63258239]
[1750691202607,7.4017,135.05,135.02,7.4027]
[1750691202812,51.74988239,135.1,135.01,51.74988239]
[1750691203015,51.74988239,135.1,135.02,7.4027]
[1750691203704,7.4014,135.05,135.02,7.4027]
[1750691204509,51.74988239,135.1,135.01,59.15318239]
[1750691204510,7.4019,135.04,135.01,59.15318239]
[1750691205010,7.4025,135.03,135.01,39.52]
[1750691205416,12.22988239,135.08,135.01,39.52]
[1750691206419,12.22988239,135.06,134.99,4.6444]
[1750691206718,7.405,134.99,134.97,12.22988239]
[1750691206912,39.52,135.03,134.97,12.22988239]
[1750691207118,39.52,135.04,134.99,12.22988239]
[1750691207914,7.4035,135.01,134.98,19.63478239]
[1750691208720,7.4026,135.03,135.0,19.63398239]
[1750691208917,43.7261,135.07,135.0,12.22988239]
[1750691209123,7.4021,135.04,135.01,7.4032]
[1750691209318,7.4021,135.04,135.0,12.22988239]
[1750691209319,39.54,135.07,135.0,12.22988239]
[1750691209723,7.4025,135.03,135.0,19.63358239]
[1750691209917,39.54,135.07,135.0,12.22988239]
[1750691210117,7.4022,135.04,135.02,12.22988239]
[1750691210317,39.54,135.07,135.02,12.22988239]
[1750691210521,39.54,135.07,135.0,51.76988239]
[1750691210910,7.4032,135.02,135.0,51.76988239]
[1750691212525,7.4027,135.03,135.0,51.76988239]
[1750691212725,39.54,135.07,135.0,51.76988239]
[1750691212925,39.54,135.07,135.01,7.4032]
[1750691213523,7.4021,135.04,135.01,19.63308239]
[1750691214624,7.4021,135.04,135.0,39.54]
[1750691214625,39.54,135.07,135.03,12.22988239]
[1750691214929,16.41548239,135.11,135.05,12.22988239]
[1750691214930,39.52,135.11,135.05,12.22988239]
[1750691215728,39.52,135.11,135.05,19.63098239]
[1750691215924,39.52,135.11,135.05,12.22988239]
[1750691216322,39.52,135.11,135.04,39.52]
[1750691216724,12.22988239,135.1,135.02,2.3981]
[1750691217127,12.22988239,135.1,135.01,17.22478239]
[1750691217325,7.4029,135.03,135.01,17.22478239]
[1750691219027,7.402,135.04,135.01,17.22478239]
[1750691219231,39.52,135.11,135.03,12.22988239]
[1750691219528,7.4008,135.06,135.05,12.22988239]
[1750691220533,7.4008,135.06,135.04,39.52]
[1750691220728,39.52,135.11,135.04,39.52]
[1750691221437,7.4011,135.06,135.04,39.52]
[1750691221838,7.4005,135.07,135.05,12.22988239]
[1750691222330,39.52,135.11,135.05,12.22988239]
[1750691222537,7.4008,135.06,135.05,12.22988239]
[1750691222936,7.4006,135.07,135.05,12.22988239]
[1750691223234,39.52,135.11,135.05,12.22988239]
[1750691223433,39.52,135.11,135.04,51.74988239]
[1750691223434,7.3983,135.11,135.04,51.74988239]
[1750691223640,39.52,135.14,135.09,12.22988239]
[1750691224038,7.3977,135.12,135.09,19.62858239]
[1750691224339,54.3103,135.17,135.09,16.82368239]
[1750691224633,39.52,135.17,135.11,12.22988239]
[1750691225335,39.52,135.17,135.09,19.33378239]
[1750691225738,7.3961,135.15,135.09,19.33378239]
[1750691225940,51.74988239,135.17,135.09,19.33378239]
[1750691226541,51.74988239,135.17,135.09,26.73268239]
[1750691227342,7.3977,135.12,135.1,7.3985]
[1750691227533,39.52,135.17,135.1,7.3985]
[1750691227734,39.52,135.17,135.09,26.73268239]
[1750691228642,7.398,135.12,135.09,26.73268239]
[1750691228845,51.74988239,135.17,135.09,19.33378239]
[1750691229042,51.74988239,135.17,135.09,14.52188239]
[1750691229641,27.02208239,135.15,135.08,39.52]
[1750691229947,27.02208239,135.15,135.06,2.2634]
[1750691230141,12.22988239,135.13,135.06,2.2634]
[1750691230342,51.72988239,135.13,135.05,39.5]
[1750691230638,12.22988239,135.11,135.02,56.49438239]
[1750691230846,51.72988239,135.13,135.04,12.22988239]
[1750691231043,7.4006,135.07,135.04,19.63148239]
[1750691231548,51.72988239,135.13,135.04,12.22988239]
[1750691231745,51.72988239,135.13,135.06,12.22988239]
[1750691232050,39.5,135.16,135.08,12.22988239]
[1750691232343,7.3978,135.12,135.1,12.22988239]
[1750691232548,39.5,135.16,135.1,12.22988239]
[1750691232745,7.3979,135.12,135.1,12.22988239]
[1750691233050,39.5,135.16,135.1,12.22988239]
[1750691233249,39.5,135.16,135.09,7.3989]
[1750691233548,39.5,135.16,135.09,12.22988239]
[1750691233743,7.3991,135.09,135.08,39.5]
[1750691233949,12.22988239,135.15,135.06,19.63058239]
[1750691234452,12.22988239,135.15,135.06,12.22988239]
[1750691234953,7.4,135.08,135.06,12.22988239]
[1750691235147,12.22988239,135.13,135.05,39.5]
[1750691235356,7.4009,135.06,135.04,51.72988239]
[1750691235555,12.22988239,135.11,135.04,39.5]
[1750691235750,39.5,135.12,135.05,12.22988239]
[1750691236453,39.5,135.12,135.06,7.4006]
[1750691236963,7.3995,135.09,135.06,7.4006]
[1750691237359,7.3995,135.09,135.07,7.4002]
[1750691237652,7.3995,135.09,135.05,12.22988239]
[1750691237852,7.3995,135.09,135.06,7.4002]
[1750691238153,7.3988,135.1,135.07,12.22988239]
[1750691238551,7.3988,135.1,135.08,46.8994]
[1750691238749,39.5,135.15,135.08,39.5]
[1750691239054,39.5,135.15,135.08,51.5974]
[1750691239447,7.3984,135.11,135.08,44.198]
[1750691239843,7.3984,135.11,135.08,51.5974]
[1750691240753,7.3984,135.11,135.09,7.3989]
[1750691241655,7.3984,135.11,135.08,44.198]
[1750691241656,7.3984,135.11,135.08,51.5974]
[1750691243855,7.3984,135.11,135.09,7.399]
[1750691244458,29.39488239,135.19,135.09,12.22988239]
[1750691244654,39.46,135.18,135.13,12.22988239]
[1750691244849,51.68988239,135.18,135.11,12.22988239]
[1750691245053,51.68988239,135.18,135.1,7.3985]
[1750691245553,51.68988239,135.18,135.09,14.69638239]
[1750691246147,7.3974,135.13,135.1,7.3983]
[1750691246353,51.68988239,135.18,135.1,7.3983]
[1750691246549,7.3971,135.13,135.1,7.3983]
[1750691246855,12.22988239,135.16,135.09,14.69638239]
[1750691247948,7.3983,135.11,135.09,12.22988239]
[1750691248157,12.22988239,135.16,135.08,44.198]
[1750691249056,12.22988239,135.16,135.08,51.5976]
[1750691249259,12.22988239,135.16,135.08,44.198]
[1750691249458,7.3989,135.1,135.08,51.5976]
[1750691250560,7.3991,135.09,135.08,44.198]
[1750691251355,7.399,135.1,135.08,44.198]
[1750691251551,12.22988239,135.16,135.08,44.198]
[1750691251752,56.6283,135.17,135.09,12.22988239]
[1750691252059,39.46,135.17,135.13,12.22988239]
[1750691252255,8.01492115,135.16,135.1,8.01492115]
[1750691252760,7.3973,135.13,135.1,8.01492115]
[1750691252957,39.46,135.17,135.12,8.01492115]
[1750691253356,7.3965,135.14,135.12,8.01492115]
[1750691254160,7.3965,135.14,135.12,15.41212115]
[1750691254360,7.3965,135.14,135.12,7.3972]
[1750691254560,7.3965,135.14,135.11,12.21208563]
[1750691254963,39.46,135.17,135.09,12.21208563]
[1750691255359,39.46,135.17,135.11,7.3978]
[1750691255767,39.46,135.17,135.11,12.21208563]
[1750691256653,7.3963,135.15,135.11,19.60988563]
[1750691257052,39.46,135.17,135.11,19.60988563]
[1750691257265,7.3964,135.14,135.11,19.60988563]
[1750691257464,7.3964,135.14,135.11,7.3978]
[1750691258467,7.397,135.13,135.11,7.3978]
[1750691258665,39.46,135.17,135.11,7.3978]
[1750691259066,7.3968,135.14,135.11,7.3978]
[1750691259269,39.46,135.17,135.1,7.3983]
[1750691259468,7.3972,135.13,135.09,12.21208563]
[1750691259666,39.46,135.17,135.09,12.21208563]
[1750691259865,39.46,135.17,135.11,7.3975]
[1750691260070,7.3966,135.14,135.11,7.3975]
[1750691260371,54.56900192,135.17,135.09,7.3991]
[1750691260572,12.21208563,135.15,135.08,44.198]
[1750691260764,54.02118563,135.17,135.08,44.198]
[1750691260962,54.02118563,135.17,135.1,7.3982]
[1750691261268,39.46,135.17,135.11,12.21208563]
[1750691261570,7.3961,135.15,135.12,7.3972]
[1750691262158,39.46,135.17,135.12,7.3972]
[1750691262368,39.46,135.17,135.11,19.60968563]
[1750691262766,7.3968,135.14,135.11,19.60968563]
[1750691263770,7.3968,135.14,135.12,7.3973]
[1750691264368,7.3968,135.14,135.11,19.60978563]
[1750691265370,7.397,135.13,135.11,19.60978563]
[1750691265669,51.67208563,135.17,135.1,7.3983]
[1750691266274,7.3978,135.12,135.1,7.3983]
[1750691266570,7.3978,135.12,135.09,19.61088563]
[1750691267365,51.67208563,135.17,135.08,44.198]
[1750691267366,12.21208563,135.15,135.08,51.5974]
[1750691268272,12.21208563,135.15,135.08,44.198]
[1750691268475,12.21208563,135.15,135.08,39.5]
[1750691268873,7.3991,135.09,135.08,39.5]
[1750691269173,51.67208563,135.13,135.05,63.27101898]
[1750691269377,7.3999,135.08,135.05,54.11538563]
[1750691269782,7.3999,135.08,135.06,7.4007]
[1750691269983,7.3994,135.09,135.05,54.11538563]
[1750691271274,7.3994,135.09,135.06,7.4002]
[1750691271579,39.46,135.13,135.05,41.9033]
[1750691271780,39.46,135.13,135.06,12.21208563]
[1750691271976,39.46,135.13,135.07,7.4]
[1750691272176,12.21208563,135.12,135.05,41.9033]
[1750691272680,7.3997,135.08,135.06,7.4005]
[1750691273275,7.3994,135.09,135.05,41.9033]
[1750691273477,12.21208563,135.12,135.05,41.9033]
[1750691273777,12.21208563,135.12,135.05,49.3042]
[1750691274377,7.4001,135.08,135.05,49.3042]
[1750691274676,7.4001,135.08,135.05,46.8609]
[1750691274874,7.4003,135.07,135.05,46.8609]
[1750691275980,7.4003,135.07,135.05,39.46]
[1750691278082,7.4003,135.07,135.04,20.16788396]
[1750691278280,7.4003,135.07,135.05,7.4012]
[1750691279281,7.3992,135.09,135.06,15.42328396]
[1750691279482,8.02278396,135.12,135.06,8.02278396]
[1750691279784,8.02278396,135.12,135.07,7.3999]
[1750691280173,47.48278396,135.13,135.06,8.02278396]
[1750691280375,39.46,135.13,135.08,8.02278396]
[1750691280780,39.46,135.13,135.09,7.3988]
[1750691280781,7.3979,135.12,135.09,7.3988]
[1750691280980,39.46,135.13,135.08,8.02278396]
[1750691281180,7.3983,135.11,135.08,15.42208396]
[1750691281683,47.48278396,135.13,135.08,8.02278396]
[1750691281879,47.48278396,135.13,135.06,194.68278396]
[1750691282277,7.3997,135.08,135.06,202.08328396]
[1750691282472,7.3997,135.08,135.06,194.68278396]
[1750691282674,8.02278396,135.11,135.06,39.42]
[1750691282878,7.4002,135.07,135.04,22.51248396]
[1750691283783,8.02278396,135.11,135.04,22.51248396]
[1750691284381,7.401,135.06,135.04,22.51248396]
[1750691284584,8.02278396,135.09,135.04,4.7435]
[1750691285590,47.46278396,135.09,135.03,47.46278396]
[1750691285783,7.4019,135.04,135.03,47.46278396]
[1750691286475,7.4019,135.04,135.03,39.44]
[1750691286677,8.02278396,135.07,135.01,17.17841731]
[1750691286989,8.02278396,135.07,135.0,64.02221731]
[1750691287385,8.02278396,135.05,135.0,48.59563335]
[1750691287591,8.02278396,135.05,135.0,39.44]
[1750691287890,7.4035,135.01,135.0,39.44]
[1750691288087,47.46278396,135.05,134.99,12.2231]
[1750691288289,39.44,135.05,135.0,8.02278396]
[1750691288588,39.44,135.08,135.02,15.42568396]
[1750691288792,39.44,135.08,135.02,8.02278396]
[1750691289292,39.44,135.08,135.03,7.4022]
[1750691289592,7.4011,135.06,135.03,7.4022]
[1750691289892,39.44,135.08,135.02,8.02278396]
[1750691290485,39.44,135.08,135.01,39.44]
[1750691290679,7.4021,135.04,135.01,39.44]
[1750691291086,7.4027,135.03,135.01,46.8432]
[1750691292093,7.4016,135.05,135.02,15.42538396]
[1750691292592,7.4016,135.05,135.02,8.02278396]
[1750691292790,8.02278396,135.1,135.04,8.02278396]
[1750691293183,7.401,135.06,135.04,8.02278396]
[1750691294498,8.02278396,135.1,135.04,8.02278396]
[1750691295493,39.44,135.11,135.04,8.02278396]
[1750691295692,8.02278396,135.1,135.04,8.02278396]
[1750691296494,8.02278396,135.1,135.04,15.42458396]
[1750691297495,8.02278396,135.1,135.05,7.4012]
[1750691297689,8.02278396,135.1,135.04,8.02278396]
[1750691297989,8.02278396,135.1,135.02,17.79658396]
[1750691298295,8.02278396,135.1,135.02,10.39388396]
[1750691298691,39.44,135.11,135.03,7.4021]
[1750691298895,8.02278396,135.1,135.03,7.4021]
[1750691299395,7.401,135.06,135.04,7.4017]
[1750691301798,7.401,135.06,135.03,7.4021]
[1750691301996,7.4013,135.05,135.03,7.4021]
[1750691302188,8.02278396,135.1,135.03,7.4021]
[1750691302590,7.4011,135.06,135.04,7.4018]
[1750691303192,7.4005,135.07,135.04,7.4018]
[1750691303398,47.46278396,135.11,135.05,8.02278396]
[1750691303694,39.44,135.11,135.05,8.02278396]
[1750691303895,7.4,135.08,135.06,7.4007]
[1750691304293,39.44,135.11,135.05,47.46278396]
[1750691304493,39.44,135.11,135.06,7.4004]
[1750691304689,639.22,135.13,135.05,47.46278396]
[1750691304999,39.4,135.14,135.09,15.42188396]
[1750691305497,39.4,135.17,135.11,8.02278396]
[1750691305690,10.91097977,135.19,135.13,8.02278396]
[1750691305890,10.91060028,135.19,135.13,8.02278396]
[1750691306093,8.02278396,135.19,135.13,8.02278396]
[1750691306289,10.91093073,135.19,135.13,8.02278396]
[1750691306485,8.02278396,135.19,135.13,8.02278396]
[1750691306691,7.3961,135.15,135.13,8.02278396]
[1750691306890,678.72,135.2,135.13,8.02278396]
[1750691307095,8.02278396,135.19,135.13,8.02278396]
[1750691307497,7.3959,135.15,135.13,8.02278396]
[1750691309302,8.02278396,135.19,135.13,8.02278396]
[1750691309899,7.3961,135.15,135.13,8.02278396]
[1750691310601,8.02278396,135.19,135.13,8.02278396]
[1750691311094,7.3962,135.15,135.13,8.02278396]
[1750691312701,7.3955,135.16,135.13,15.41958396]
[1750691312901,686.74278396,135.2,135.13,47.40278396]
[1750691313105,39.4,135.2,135.15,8.02278396]
[1750691313812,7.3945,135.18,135.15,15.41848396]
[1750691314310,39.4,135.2,135.15,8.02278396]